[Event "Titled Tuesday Blitz April 19 Late 2022"]
[White "Zlatin, Alexander"]
[Black "Koziorowicz, Michal"]
[WhiteFideId "2810549"]
[BlackFideId "21809194"]
[WhiteElo "2465"]
[BlackElo "2645"]
[Result "1-0"]
[Round "06"]
[TimeControl "180+1"]
[Date "2022.04.19"]
[WhiteClock "0:00:21"]
[BlackClock "0:00:16"]

1. c4 {[%clk 0:03:00]}  Na6 {[%clk 0:02:59]} 2. Nc3 {[%clk 0:02:54]}  g5 {[%clk 0:02:51]} 3. d4 {[%clk 0:02:52]}  h6 {[%clk 0:02:50]} 4. h4 {[%clk 0:02:49]}  gxh4 {[%clk 0:02:48]} 5. Nf3 {[%clk 0:02:49]}  Bg7 {[%clk 0:02:46]} 6. e4 {[%clk 0:02:49]}  c5 {[%clk 0:02:45]} 7. d5 {[%clk 0:02:48]}  d6 {[%clk 0:02:46]} 8. Nxh4 {[%clk 0:02:46]}  Nf6 {[%clk 0:02:46]} 9. Be2 {[%clk 0:02:45]}  Nc7 {[%clk 0:02:44]} 10. Bf4 {[%clk 0:02:41]}  Bd7 {[%clk 0:02:35]} 11. g4 {[%clk 0:02:25]}  Qc8 {[%clk 0:02:14]} 12. Nf5 {[%clk 0:02:24]}  Bxf5 {[%clk 0:02:14]} 13. gxf5 {[%clk 0:02:19]}  Qd7 {[%clk 0:02:14]} 14. Rg1 {[%clk 0:02:17]}  Bf8 {[%clk 0:02:12]} 15. Qd2 {[%clk 0:02:02]}  O-O-O {[%clk 0:02:11]} 16. O-O-O {[%clk 0:02:01]}  h5 {[%clk 0:02:00]} 17. Kb1 {[%clk 0:01:59]}  Kb8 {[%clk 0:01:37]} 18. f3 {[%clk 0:01:59]}  Ka8 {[%clk 0:01:32]} 19. Bf1 {[%clk 0:01:56]}  h4 {[%clk 0:01:30]} 20. Bh3 {[%clk 0:01:56]}  b5 {[%clk 0:01:29]} 21. e5 {[%clk 0:01:55]}  Nh5 {[%clk 0:01:27]} 22. Bh2 {[%clk 0:01:46]}  f6 {[%clk 0:01:18]} 23. exd6 {[%clk 0:01:41]}  exd6 {[%clk 0:01:17]} 24. cxb5 {[%clk 0:01:29]}  Nxb5 {[%clk 0:01:17]} 25. Nxb5 {[%clk 0:01:30]}  Qxb5 {[%clk 0:01:18]} 26. Bf1 {[%clk 0:01:29]}  Qb7 {[%clk 0:01:16]} 27. a4 {[%clk 0:01:23]}  Bh6 {[%clk 0:01:14]} 28. Qa5 {[%clk 0:01:20]}  Qb6 {[%clk 0:01:01]} 29. Qc3 {[%clk 0:01:19]}  a6 {[%clk 0:00:56]} 30. a5 {[%clk 0:01:16]}  Qb7 {[%clk 0:00:55]} 31. Qc4 {[%clk 0:01:14]}  Ka7 {[%clk 0:00:54]} 32. Bxd6 {[%clk 0:01:08]}  Be3 {[%clk 0:00:48]} 33. Bxc5+ {[%clk 0:01:07]}  Bxc5 {[%clk 0:00:48]} 34. Qxc5+ {[%clk 0:01:08]}  Ka8 {[%clk 0:00:49]} 35. d6 {[%clk 0:00:50]}  Nf4 {[%clk 0:00:44]} 36. Qd4 {[%clk 0:00:45]}  Rb8 {[%clk 0:00:43]} 37. Rd2 {[%clk 0:00:41]}  Rhe8 {[%clk 0:00:43]} 38. Bc4 {[%clk 0:00:37]}  Qa7 {[%clk 0:00:29]} 39. Qxa7+ {[%clk 0:00:28]}  Kxa7 {[%clk 0:00:29]} 40. Rg4 {[%clk 0:00:25]}  Nh5 {[%clk 0:00:27]} 41. Rxh4 {[%clk 0:00:24]}  Ng3 {[%clk 0:00:28]} 42. Be6 {[%clk 0:00:18]}  Nf1 {[%clk 0:00:25]} 43. Rd3 {[%clk 0:00:17]}  Rb5 {[%clk 0:00:23]} 44. Rh7+ {[%clk 0:00:17]}  Rb7 {[%clk 0:00:19]} 45. Rxb7+ {[%clk 0:00:17]}  Kxb7 {[%clk 0:00:20]} 46. d7 {[%clk 0:00:17]}  Rd8 {[%clk 0:00:20]} 47. Rc3 {[%clk 0:00:17]}  Nd2+ {[%clk 0:00:20]} 48. Kc2 {[%clk 0:00:16]}  Nxf3 {[%clk 0:00:20]} 49. Rxf3 {[%clk 0:00:16]}  Kc7 {[%clk 0:00:19]} 50. Rc3+ {[%clk 0:00:17]}  Kd6 {[%clk 0:00:20]} 51. Rc8 {[%clk 0:00:17]}  Ke7 {[%clk 0:00:16]} 52. Rxd8 {[%clk 0:00:17]}  Kxd8 {[%clk 0:00:11]} 53. Kc3 {[%clk 0:00:18]}  Kc7 {[%clk 0:00:10]} 54. Kc4 {[%clk 0:00:18]}  Kd8 {[%clk 0:00:10]} 55. Kc5 {[%clk 0:00:19]}  Ke7 {[%clk 0:00:11]} 56. Kb6 {[%clk 0:00:19]}  Kd8 {[%clk 0:00:12]} 57. Kxa6 {[%clk 0:00:19]}  Kc7 {[%clk 0:00:13]} 58. Ka7 {[%clk 0:00:19]}  Kd8 {[%clk 0:00:13]} 59. Kb7 {[%clk 0:00:20]}  Ke7 {[%clk 0:00:14]} 60. Kc7 {[%clk 0:00:19]}  Kf8 {[%clk 0:00:14]} 61. d8=Q+ {[%clk 0:00:20]}  Kg7 {[%clk 0:00:15]} 62. Qg8+ {[%clk 0:00:20]}  Kh6 {[%clk 0:00:16]} 63. Qg6# {[%clk 0:00:21]} 1-0


[Site "https://www.chess.com"]

[Event "Titled Tuesday Blitz April 19 Late 2022"]
[White "Zor, Alber Kadir"]
[Black "Avramidou, Anastasia"]
[WhiteFideId "6353169"]
[BlackFideId "4239873"]
[WhiteElo "1966"]
[BlackElo "2183"]
[Result "0-1"]
[Round "06"]
[TimeControl "180+1"]
[Date "2022.04.19"]
[WhiteClock "0:00:11"]
[BlackClock "0:00:13"]

1. e4 {[%clk 0:03:00]}  g6 {[%clk 0:02:52]} 2. d4 {[%clk 0:02:59]}  Bg7 {[%clk 0:02:52]} 3. Nc3 {[%clk 0:02:57]}  c6 {[%clk 0:02:51]} 4. f4 {[%clk 0:02:54]}  d5 {[%clk 0:02:50]} 5. e5 {[%clk 0:02:53]}  Nh6 {[%clk 0:02:48]} 6. Nf3 {[%clk 0:02:48]}  O-O {[%clk 0:02:46]} 7. Bd3 {[%clk 0:02:45]}  f6 {[%clk 0:02:43]} 8. O-O {[%clk 0:02:43]}  Bg4 {[%clk 0:02:42]} 9. Ne2 {[%clk 0:02:17]}  Bxf3 {[%clk 0:02:30]} 10. Rxf3 {[%clk 0:02:18]}  fxe5 {[%clk 0:02:30]} 11. fxe5 {[%clk 0:02:15]}  Rxf3 {[%clk 0:02:29]} 12. gxf3 {[%clk 0:02:15]}  Qd7 {[%clk 0:02:28]} 13. Qf1 {[%clk 0:02:09]}  Nf5 {[%clk 0:02:26]} 14. Qg2 {[%clk 0:02:02]}  Na6 {[%clk 0:02:21]} 15. c3 {[%clk 0:02:00]}  Rf8 {[%clk 0:02:18]} 16. f4 {[%clk 0:01:26]}  Nc7 {[%clk 0:02:12]} 17. Bd2 {[%clk 0:01:23]}  Ne6 {[%clk 0:01:56]} 18. Bxf5 {[%clk 0:01:20]}  Rxf5 {[%clk 0:01:56]} 19. Ng3 {[%clk 0:01:19]}  Rf8 {[%clk 0:01:54]} 20. Rf1 {[%clk 0:01:17]}  Nc7 {[%clk 0:01:50]} 21. f5 {[%clk 0:01:00]}  gxf5 {[%clk 0:01:44]} 22. Nh5 {[%clk 0:01:00]}  Rf7 {[%clk 0:01:44]} 23. Bh6 {[%clk 0:00:59]}  Ne8 {[%clk 0:01:44]} 24. Nf4 {[%clk 0:00:51]}  e6 {[%clk 0:01:31]} 25. Kh1 {[%clk 0:00:51]}  Kf8 {[%clk 0:01:24]} 26. Bg5 {[%clk 0:00:43]}  Bh8 {[%clk 0:01:00]} 27. Rg1 {[%clk 0:00:41]}  Qc8 {[%clk 0:00:47]} 28. Nh5 {[%clk 0:00:36]}  Qc7 {[%clk 0:00:29]} 29. Nf6 {[%clk 0:00:24]}  Nxf6 {[%clk 0:00:11]} 30. Bxf6 {[%clk 0:00:24]}  Ke8 {[%clk 0:00:07]} 31. Bxh8 {[%clk 0:00:21]}  Kd7 {[%clk 0:00:07]} 32. Bf6 {[%clk 0:00:21]}  Qc8 {[%clk 0:00:05]} 33. Qg8 {[%clk 0:00:20]}  c5 {[%clk 0:00:04]} 34. Qxc8+ {[%clk 0:00:20]}  Kxc8 {[%clk 0:00:05]} 35. Rg7 {[%clk 0:00:19]}  Rxg7 {[%clk 0:00:05]} 36. Bxg7 {[%clk 0:00:20]}  Kd7 {[%clk 0:00:05]} 37. Kg2 {[%clk 0:00:20]}  Kc6 {[%clk 0:00:06]} 38. Kf3 {[%clk 0:00:20]}  Kb5 {[%clk 0:00:07]} 39. Bf8 {[%clk 0:00:19]}  Kc4 {[%clk 0:00:08]} 40. dxc5 {[%clk 0:00:18]}  Kd3 {[%clk 0:00:08]} 41. c6 {[%clk 0:00:16]}  bxc6 {[%clk 0:00:08]} 42. Bb4 {[%clk 0:00:16]}  Kc2 {[%clk 0:00:08]} 43. b3 {[%clk 0:00:15]}  Kb2 {[%clk 0:00:08]} 44. a4 {[%clk 0:00:15]}  Kxb3 {[%clk 0:00:08]} 45. Bc5 {[%clk 0:00:08]}  a6 {[%clk 0:00:07]} 46. a5 {[%clk 0:00:07]}  Kxc3 {[%clk 0:00:08]} 47. Ke3 {[%clk 0:00:07]}  Kc4 {[%clk 0:00:08]} 48. Bd4 {[%clk 0:00:06]}  c5 {[%clk 0:00:09]} 49. Ba1 {[%clk 0:00:05]}  d4+ {[%clk 0:00:10]} 50. Kd2 {[%clk 0:00:05]}  Kd5 {[%clk 0:00:10]} 51. Kd3 {[%clk 0:00:06]}  c4+ {[%clk 0:00:10]} 52. Kd2 {[%clk 0:00:06]}  Kxe5 {[%clk 0:00:11]} 53. Kc2 {[%clk 0:00:06]}  Kd5 {[%clk 0:00:11]} 54. Kd2 {[%clk 0:00:07]}  e5 {[%clk 0:00:12]} 55. Ke2 {[%clk 0:00:07]}  e4 {[%clk 0:00:12]} 56. Kd2 {[%clk 0:00:08]}  c3+ {[%clk 0:00:13]} 57. Ke2 {[%clk 0:00:09]}  Kc4 {[%clk 0:00:13]} 58. Kd1 {[%clk 0:00:09]}  Kb3 {[%clk 0:00:13]} 59. Bxc3 {[%clk 0:00:10]}  Kxc3 {[%clk 0:00:13]} 60. Kc1 {[%clk 0:00:11]}  Kb4 {[%clk 0:00:13]} 0-1


[Site "https://www.chess.com"]

[Event "Titled Tuesday Blitz April 19 Late 2022"]
[White "Adewumi, Tanitoluwa"]
[Black "Bordi, Kevin"]
[WhiteFideId "30966396"]
[BlackFideId "621862"]
[WhiteElo "2541"]
[BlackElo "2721"]
[Result "1-0"]
[Round "07"]
[TimeControl "180+1"]
[Date "2022.04.19"]
[WhiteClock "0:01:41"]
[BlackClock "0:01:52"]

1. e4 {[%clk 0:03:00]}  d5 {[%clk 0:03:00]} 2. exd5 {[%clk 0:03:00]}  Qxd5 {[%clk 0:03:01]} 3. Nc3 {[%clk 0:02:56]}  Qa5 {[%clk 0:03:01]} 4. d4 {[%clk 0:02:57]}  Nf6 {[%clk 0:03:01]} 5. Nf3 {[%clk 0:02:58]}  c6 {[%clk 0:03:01]} 6. Ne5 {[%clk 0:02:58]}  Be6 {[%clk 0:03:01]} 7. Nc4 {[%clk 0:02:52]}  Bxc4 {[%clk 0:03:01]} 8. Bxc4 {[%clk 0:02:53]}  e6 {[%clk 0:03:01]} 9. O-O {[%clk 0:02:53]}  Bd6 {[%clk 0:03:01]} 10. Re1 {[%clk 0:02:53]}  O-O {[%clk 0:03:01]} 11. Ne4 {[%clk 0:02:52]}  Nxe4 {[%clk 0:03:00]} 12. Rxe4 {[%clk 0:02:53]}  Nd7 {[%clk 0:03:00]} 13. c3 {[%clk 0:02:52]}  Nf6 {[%clk 0:02:56]} 14. Rh4 {[%clk 0:02:52]}  Rad8 {[%clk 0:02:54]} 15. Bd3 {[%clk 0:02:51]}  Be7 {[%clk 0:02:47]} 16. Qf3 {[%clk 0:02:45]}  c5 {[%clk 0:02:40]} 17. Bg5 {[%clk 0:02:35]}  Rfe8 {[%clk 0:02:11]} 18. Qh3 {[%clk 0:01:41]}  cxd4 {[%clk 0:02:01]} 19. Rxh7 {[%clk 0:01:39]}  Kf8 {[%clk 0:01:51]} 20. Rh8+ {[%clk 0:01:38]}  Ng8 {[%clk 0:01:51]} 21. Rxg8+ {[%clk 0:01:39]}  Kxg8 {[%clk 0:01:51]} 22. Qh7+ {[%clk 0:01:40]}  Kf8 {[%clk 0:01:52]} 23. Qh8# {[%clk 0:01:41]} 1-0


[Site "https://www.chess.com"]

[Event "Titled Tuesday Blitz April 19 Late 2022"]
[White "Ahmadzada, Ahmad"]
[Black "Alekseenko, Kirill"]
[WhiteFideId "13413007"]
[BlackFideId "4135539"]
[WhiteElo "2228"]
[BlackElo "2682"]
[Result "0-1"]
[Round "07"]
[TimeControl "180+1"]
[Date "2022.04.19"]
[WhiteClock "0:00:01"]
[BlackClock "0:01:09"]

1. Nf3 {[%clk 0:03:00]}  d5 {[%clk 0:02:59]} 2. g3 {[%clk 0:03:00]}  Nd7 {[%clk 0:03:00]} 3. Bg2 {[%clk 0:03:00]}  e5 {[%clk 0:02:59]} 4. d3 {[%clk 0:02:59]}  Ngf6 {[%clk 0:03:00]} 5. O-O {[%clk 0:03:00]}  Bc5 {[%clk 0:03:00]} 6. d4 {[%clk 0:02:38]}  exd4 {[%clk 0:02:59]} 7. Nxd4 {[%clk 0:02:38]}  O-O {[%clk 0:02:57]} 8. Nc3 {[%clk 0:02:38]}  c6 {[%clk 0:02:57]} 9. e4 {[%clk 0:02:20]}  dxe4 {[%clk 0:02:54]} 10. Nb3 {[%clk 0:02:15]}  Bb6 {[%clk 0:02:41]} 11. Nxe4 {[%clk 0:01:50]}  Nxe4 {[%clk 0:02:41]} 12. Bxe4 {[%clk 0:01:50]}  Nf6 {[%clk 0:02:41]} 13. Bg2 {[%clk 0:00:40]}  Bf5 {[%clk 0:02:27]} 14. c3 {[%clk 0:00:34]}  Re8 {[%clk 0:01:46]} 15. Bg5 {[%clk 0:00:27]}  Qxd1 {[%clk 0:01:43]} 16. Raxd1 {[%clk 0:00:26]}  Ne4 {[%clk 0:01:42]} 17. Bc1 {[%clk 0:00:13]}  Bg4 {[%clk 0:01:39]} 18. Rde1 {[%clk 0:00:04]}  Nxf2 {[%clk 0:01:39]} 19. Rxe8+ {[%clk 0:00:04]}  Rxe8 {[%clk 0:01:39]} 20. Nd4 {[%clk 0:00:05]}  Nd3 {[%clk 0:01:35]} 21. Bd2 {[%clk 0:00:04]}  Nxb2 {[%clk 0:01:30]} 22. Bf4 {[%clk 0:00:02]}  Na4 {[%clk 0:01:27]} 23. h3 {[%clk 0:00:03]}  Nxc3 {[%clk 0:01:25]} 24. hxg4 {[%clk 0:00:03]}  Bxd4+ {[%clk 0:01:25]} 25. Kh2 {[%clk 0:00:03]}  h6 {[%clk 0:01:20]} 26. Rc1 {[%clk 0:00:01]}  g5 {[%clk 0:01:13]} 27. Bd2 {[%clk 0:00:01]}  Ne4 {[%clk 0:01:09]} 0-1


[Site "https://www.chess.com"]

[Event "Titled Tuesday Blitz April 19 Late 2022"]
[White "Antonova, Nadezhda"]
[Black "Mirza, Diana"]
[WhiteFideId "14700182"]
[BlackFideId "2503999"]
[WhiteElo "1789"]
[BlackElo "1813"]
[Result "1-0"]
[Round "07"]
[TimeControl "180+1"]
[Date "2022.04.19"]
[WhiteClock "0:02:25"]
[BlackClock "0:01:53"]

1. Nf3 {[%clk 0:02:58]}  g6 {[%clk 0:02:57]} 2. d4 {[%clk 0:02:57]}  Bg7 {[%clk 0:02:57]} 3. g3 {[%clk 0:02:57]}  d6 {[%clk 0:02:57]} 4. Bg2 {[%clk 0:02:57]}  c5 {[%clk 0:02:57]} 5. dxc5 {[%clk 0:02:56]}  dxc5 {[%clk 0:02:52]} 6. Qxd8+ {[%clk 0:02:55]}  Kxd8 {[%clk 0:02:53]} 7. O-O {[%clk 0:02:51]}  Nc6 {[%clk 0:02:52]} 8. c3 {[%clk 0:02:51]}  Bg4 {[%clk 0:02:44]} 9. Rd1+ {[%clk 0:02:50]}  Kc7 {[%clk 0:02:41]} 10. Na3 {[%clk 0:02:50]}  a6 {[%clk 0:02:39]} 11. h3 {[%clk 0:02:46]}  Bxf3 {[%clk 0:02:36]} 12. Bxf3 {[%clk 0:02:45]}  Nf6 {[%clk 0:02:35]} 13. Be3 {[%clk 0:02:42]}  b6 {[%clk 0:02:30]} 14. Nc4 {[%clk 0:02:34]}  Rad8 {[%clk 0:02:28]} 15. Bxc6 {[%clk 0:02:32]}  Kxc6 {[%clk 0:02:27]} 16. Ne5+ {[%clk 0:02:32]}  Kc7 {[%clk 0:02:24]} 17. Nxf7 {[%clk 0:02:32]}  Rxd1+ {[%clk 0:02:24]} 18. Rxd1 {[%clk 0:02:33]}  Rf8 {[%clk 0:02:22]} 19. Ng5 {[%clk 0:02:31]}  Kb7 {[%clk 0:01:53]} 20. Ne6 {[%clk 0:02:25]}  Rf7 {[%clk 0:01:53]} 21. Nd8+ {[%clk 0:02:25]} 1-0


[Site "https://www.chess.com"]

[Event "Titled Tuesday Blitz April 19 Late 2022"]
[White "Ardila, Oscar Humberto"]
[Black "Jaskolka, Tomasz"]
[WhiteFideId "4404742"]
[BlackFideId "1170791"]
[WhiteElo "1983"]
[BlackElo "2073"]
[Result "0-1"]
[Round "07"]
[TimeControl "180+1"]
[Date "2022.04.19"]
[WhiteClock "0:00:18"]
[BlackClock "0:00:07"]

1. d4 {[%clk 0:03:00]}  Nf6 {[%clk 0:02:58]} 2. c4 {[%clk 0:03:01]}  c5 {[%clk 0:02:59]} 3. d5 {[%clk 0:03:01]}  b5 {[%clk 0:02:59]} 4. Qc2 {[%clk 0:03:00]}  d6 {[%clk 0:02:56]} 5. e4 {[%clk 0:02:59]}  g6 {[%clk 0:02:55]} 6. h3 {[%clk 0:02:58]}  a6 {[%clk 0:02:56]} 7. Nf3 {[%clk 0:02:58]}  Bg7 {[%clk 0:02:56]} 8. Bd3 {[%clk 0:02:57]}  O-O {[%clk 0:02:56]} 9. O-O {[%clk 0:02:57]}  Nbd7 {[%clk 0:02:51]} 10. Bf4 {[%clk 0:02:57]}  Ne8 {[%clk 0:02:49]} 11. Re1 {[%clk 0:02:53]}  Bb7 {[%clk 0:02:40]} 12. Nbd2 {[%clk 0:02:52]}  Qc7 {[%clk 0:02:34]} 13. cxb5 {[%clk 0:02:38]}  axb5 {[%clk 0:02:30]} 14. Bxb5 {[%clk 0:02:38]}  Ba6 {[%clk 0:02:30]} 15. Bc6 {[%clk 0:02:33]}  Rb8 {[%clk 0:02:28]} 16. Rab1 {[%clk 0:02:33]}  Rb6 {[%clk 0:01:34]} 17. b3 {[%clk 0:02:30]}  Rxc6 {[%clk 0:01:13]} 18. dxc6 {[%clk 0:02:29]}  Qxc6 {[%clk 0:01:14]} 19. e5 {[%clk 0:02:23]}  d5 {[%clk 0:01:00]} 20. Rbc1 {[%clk 0:02:12]}  Nc7 {[%clk 0:00:59]} 21. Nd4 {[%clk 0:01:36]}  Qa8 {[%clk 0:00:55]} 22. N4f3 {[%clk 0:01:28]}  Ne6 {[%clk 0:00:54]} 23. Bg3 {[%clk 0:01:24]}  Rc8 {[%clk 0:00:53]} 24. Red1 {[%clk 0:01:11]}  Qb7 {[%clk 0:00:29]} 25. Re1 {[%clk 0:01:11]}  Qa8 {[%clk 0:00:28]} 26. h4 {[%clk 0:01:06]}  Bb7 {[%clk 0:00:26]} 27. Qb1 {[%clk 0:01:02]}  Ba6 {[%clk 0:00:25]} 28. a4 {[%clk 0:00:59]}  Qb7 {[%clk 0:00:24]} 29. Qb2 {[%clk 0:00:55]}  h5 {[%clk 0:00:20]} 30. Qa2 {[%clk 0:00:55]}  Qb4 {[%clk 0:00:20]} 31. Qc2 {[%clk 0:00:50]}  Nf4 {[%clk 0:00:16]} 32. Bxf4 {[%clk 0:00:47]}  Qxf4 {[%clk 0:00:16]} 33. e6 {[%clk 0:00:45]}  Ne5 {[%clk 0:00:15]} 34. exf7+ {[%clk 0:00:45]}  Kxf7 {[%clk 0:00:16]} 35. Nxe5+ {[%clk 0:00:42]}  Bxe5 {[%clk 0:00:17]} 36. Nf3 {[%clk 0:00:42]}  Bd6 {[%clk 0:00:17]} 37. Qd2 {[%clk 0:00:40]}  Qxd2 {[%clk 0:00:15]} 38. Nxd2 {[%clk 0:00:41]}  e5 {[%clk 0:00:15]} 39. Nf3 {[%clk 0:00:40]}  Ke6 {[%clk 0:00:15]} 40. Ng5+ {[%clk 0:00:39]}  Kf5 {[%clk 0:00:15]} 41. Rcd1 {[%clk 0:00:39]}  d4 {[%clk 0:00:15]} 42. Ne4 {[%clk 0:00:38]}  Be7 {[%clk 0:00:15]} 43. f3 {[%clk 0:00:33]}  Bxh4 {[%clk 0:00:15]} 44. g3 {[%clk 0:00:32]}  Be7 {[%clk 0:00:15]} 45. Kg2 {[%clk 0:00:32]}  c4 {[%clk 0:00:15]} 46. bxc4 {[%clk 0:00:31]}  Rxc4 {[%clk 0:00:16]} 47. Rc1 {[%clk 0:00:32]}  Rxa4 {[%clk 0:00:16]} 48. Rc7 {[%clk 0:00:30]}  Ke6 {[%clk 0:00:16]} 49. Rc6+ {[%clk 0:00:29]}  Kf5 {[%clk 0:00:15]} 50. Rc7 {[%clk 0:00:29]}  Ra2+ {[%clk 0:00:15]} 51. Kh3 {[%clk 0:00:28]}  Ke6 {[%clk 0:00:16]} 52. Rec1 {[%clk 0:00:27]}  Bb5 {[%clk 0:00:13]} 53. Rb7 {[%clk 0:00:26]}  Ba6 {[%clk 0:00:09]} 54. Rb6+ {[%clk 0:00:26]}  Kf5 {[%clk 0:00:10]} 55. Nd6+ {[%clk 0:00:21]}  Bxd6 {[%clk 0:00:08]} 56. Rxd6 {[%clk 0:00:22]}  Be2 {[%clk 0:00:08]} 57. g4+ {[%clk 0:00:19]}  hxg4+ {[%clk 0:00:08]} 58. fxg4+ {[%clk 0:00:20]}  Bxg4+ {[%clk 0:00:09]} 59. Kg3 {[%clk 0:00:20]}  Ra3+ {[%clk 0:00:09]} 60. Kf2 {[%clk 0:00:21]}  Ke4 {[%clk 0:00:09]} 61. Re1+ {[%clk 0:00:20]}  Re3 {[%clk 0:00:07]} 62. Rxe3+ {[%clk 0:00:18]}  dxe3+ {[%clk 0:00:08]} 63. Ke1 {[%clk 0:00:19]}  Bf5 {[%clk 0:00:08]} 64. Rd7 {[%clk 0:00:18]}  Bxd7 {[%clk 0:00:07]} 0-1


[Site "https://www.chess.com"]

[Event "Titled Tuesday Blitz April 19 Late 2022"]
[White "Arnold, Ken"]
[Black "Ansh M Shah"]
[WhiteFideId "2056836"]
[BlackFideId "25033379"]
[WhiteElo "2120"]
[BlackElo "1819"]
[Result "1-0"]
[Round "07"]
[TimeControl "180+1"]
[Date "2022.04.19"]
[WhiteClock "0:00:50"]
[BlackClock "0:00:10"]

1. d4 {[%clk 0:03:00]}  Nf6 {[%clk 0:03:00]} 2. c4 {[%clk 0:03:00]}  g6 {[%clk 0:02:59]} 3. Nf3 {[%clk 0:03:00]}  Bg7 {[%clk 0:02:58]} 4. Bf4 {[%clk 0:03:01]}  O-O {[%clk 0:02:58]} 5. e3 {[%clk 0:03:01]}  c5 {[%clk 0:02:57]} 6. Nc3 {[%clk 0:03:00]}  cxd4 {[%clk 0:02:57]} 7. Nxd4 {[%clk 0:02:59]}  d5 {[%clk 0:02:57]} 8. Be2 {[%clk 0:02:56]}  Nc6 {[%clk 0:02:56]} 9. Nxc6 {[%clk 0:02:55]}  bxc6 {[%clk 0:02:57]} 10. O-O {[%clk 0:02:52]}  e6 {[%clk 0:02:52]} 11. c5 {[%clk 0:02:48]}  a5 {[%clk 0:02:50]} 12. Bd6 {[%clk 0:02:47]}  Re8 {[%clk 0:02:48]} 13. Qa4 {[%clk 0:02:47]}  Bd7 {[%clk 0:02:39]} 14. Rfd1 {[%clk 0:02:40]}  e5 {[%clk 0:02:37]} 15. Rac1 {[%clk 0:02:36]}  Bf8 {[%clk 0:02:26]} 16. Bxf8 {[%clk 0:02:17]}  Kxf8 {[%clk 0:02:26]} 17. Qa3 {[%clk 0:02:18]}  Kg7 {[%clk 0:02:24]} 18. Na4 {[%clk 0:02:17]}  Qe7 {[%clk 0:02:20]} 19. Nb6 {[%clk 0:02:16]}  Ra7 {[%clk 0:02:20]} 20. b4 {[%clk 0:02:12]}  Be6 {[%clk 0:02:17]} 21. b5 {[%clk 0:02:06]}  cxb5 {[%clk 0:02:14]} 22. Bxb5 {[%clk 0:02:05]}  Rb8 {[%clk 0:02:12]} 23. Qc3 {[%clk 0:01:48]}  Bd7 {[%clk 0:01:11]} 24. Bxd7 {[%clk 0:01:41]}  Nxd7 {[%clk 0:01:12]} 25. Nxd5 {[%clk 0:01:36]}  Qe6 {[%clk 0:01:05]} 26. c6 {[%clk 0:01:35]}  Nf6 {[%clk 0:00:57]} 27. c7 {[%clk 0:01:23]}  Rc8 {[%clk 0:00:54]} 28. Nxf6 {[%clk 0:01:13]}  Qxf6 {[%clk 0:00:49]} 29. Rd7 {[%clk 0:01:07]}  Qe6 {[%clk 0:00:42]} 30. Qc6 {[%clk 0:00:54]}  Kf6 {[%clk 0:00:17]} 31. Rd6 {[%clk 0:00:51]}  Rcxc7 {[%clk 0:00:10]} 32. Rxe6+ {[%clk 0:00:50]}  fxe6 {[%clk 0:00:09]} 33. Qxc7 {[%clk 0:00:50]}  Rxc7 {[%clk 0:00:10]} 34. Rxc7 {[%clk 0:00:50]} 1-0


[Site "https://www.chess.com"]

[Event "Titled Tuesday Blitz April 19 Late 2022"]
[White "Aroesti, Roee"]
[Black "Kaasen, Tor Fredrik"]
[WhiteFideId "2817144"]
[BlackFideId "1516647"]
[WhiteElo "2068"]
[BlackElo "2335"]
[Result "1-0"]
[Round "07"]
[TimeControl "180+1"]
[Date "2022.04.19"]
[WhiteClock "0:00:02"]
[BlackClock "0:00:02"]

1. e4 {[%clk 0:03:00]}  e5 {[%clk 0:02:59]} 2. Nf3 {[%clk 0:03:00]}  Nc6 {[%clk 0:03:00]} 3. Bc4 {[%clk 0:02:58]}  Nf6 {[%clk 0:03:00]} 4. d3 {[%clk 0:02:56]}  Bc5 {[%clk 0:02:59]} 5. c3 {[%clk 0:02:54]}  d6 {[%clk 0:02:59]} 6. a4 {[%clk 0:02:51]}  a5 {[%clk 0:02:58]} 7. Bg5 {[%clk 0:02:49]}  h6 {[%clk 0:02:58]} 8. Bh4 {[%clk 0:02:48]}  g5 {[%clk 0:02:58]} 9. Bg3 {[%clk 0:02:48]}  O-O {[%clk 0:02:59]} 10. O-O {[%clk 0:02:45]}  Nh7 {[%clk 0:02:59]} 11. d4 {[%clk 0:02:32]}  Bb6 {[%clk 0:02:56]} 12. dxe5 {[%clk 0:02:25]}  g4 {[%clk 0:02:57]} 13. Nh4 {[%clk 0:02:23]}  Nxe5 {[%clk 0:02:44]} 14. Bxe5 {[%clk 0:02:08]}  Qxh4 {[%clk 0:02:31]} 15. Bg3 {[%clk 0:01:57]}  Qg5 {[%clk 0:02:31]} 16. Nd2 {[%clk 0:01:54]}  h5 {[%clk 0:02:29]} 17. Kh1 {[%clk 0:01:44]}  Kh8 {[%clk 0:01:57]} 18. f4 {[%clk 0:01:40]}  Qh6 {[%clk 0:01:50]} 19. f5 {[%clk 0:01:32]}  Be3 {[%clk 0:01:45]} 20. Nb3 {[%clk 0:01:29]}  h4 {[%clk 0:01:43]} 21. Be1 {[%clk 0:01:25]}  Nf6 {[%clk 0:01:42]} 22. Qd3 {[%clk 0:01:02]}  Bd7 {[%clk 0:01:36]} 23. Bd2 {[%clk 0:00:59]}  Bxd2 {[%clk 0:01:31]} 24. Nxd2 {[%clk 0:00:58]}  Bc6 {[%clk 0:01:29]} 25. Rae1 {[%clk 0:00:57]}  Rae8 {[%clk 0:01:29]} 26. Bb5 {[%clk 0:00:55]}  Bxb5 {[%clk 0:01:18]} 27. axb5 {[%clk 0:00:56]}  b6 {[%clk 0:01:16]} 28. Qd4 {[%clk 0:00:53]}  Kh7 {[%clk 0:01:08]} 29. Re2 {[%clk 0:00:52]}  Nh5 {[%clk 0:00:59]} 30. Qe3 {[%clk 0:00:39]}  Qf6 {[%clk 0:00:50]} 31. Qd4 {[%clk 0:00:35]}  Qh6 {[%clk 0:00:26]} 32. Qe3 {[%clk 0:00:34]}  Qf6 {[%clk 0:00:23]} 33. Qd4 {[%clk 0:00:33]}  Re5 {[%clk 0:00:19]} 34. Nc4 {[%clk 0:00:31]}  Rxb5 {[%clk 0:00:19]} 35. e5 {[%clk 0:00:26]}  dxe5 {[%clk 0:00:17]} 36. Qxg4 {[%clk 0:00:25]}  Qh6 {[%clk 0:00:13]} 37. Qxh4 {[%clk 0:00:19]}  f6 {[%clk 0:00:11]} 38. Rd1 {[%clk 0:00:18]}  Rg8 {[%clk 0:00:10]} 39. Ne3 {[%clk 0:00:17]}  Nf4 {[%clk 0:00:08]} 40. Rd7+ {[%clk 0:00:15]}  Rg7 {[%clk 0:00:08]} 41. Rxg7+ {[%clk 0:00:15]}  Kxg7 {[%clk 0:00:09]} 42. Qg4+ {[%clk 0:00:11]}  Kh7 {[%clk 0:00:09]} 43. Rd2 {[%clk 0:00:12]}  Nh5 {[%clk 0:00:05]} 44. Rd7+ {[%clk 0:00:11]}  Ng7 {[%clk 0:00:05]} 45. h3 {[%clk 0:00:08]}  Rxb2 {[%clk 0:00:02]} 46. Nd5 {[%clk 0:00:05]}  a4 {[%clk 0:00:02]} 47. Rf7 {[%clk 0:00:02]} 1-0


[Site "https://www.chess.com"]